[Event "Titled Tuesday Blitz June 28 Early 2022"]
[White "Harvey, Marcus R"]
[Black "Przybylski, Wojciech"]
[WhiteFideId "400092"]
[BlackFideId "1117599"]
[WhiteElo "2485"]
[BlackElo "2133"]
[Result "1-0"]
[Round "09"]
[TimeControl "180+1"]
[Date "2022.06.28"]
[WhiteClock "0:00:19"]
[BlackClock "0:00:03"]

1. d4 {[%clk 0:03:00]}  Nf6 {[%clk 0:02:56]} 2. c4 {[%clk 0:03:00]}  e6 {[%clk 0:02:56]} 3. Nc3 {[%clk 0:03:00]}  Bb4 {[%clk 0:02:54]} 4. e3 {[%clk 0:03:01]}  O-O {[%clk 0:02:54]} 5. Bd2 {[%clk 0:03:01]}  d5 {[%clk 0:02:54]} 6. Rc1 {[%clk 0:03:01]}  c6 {[%clk 0:02:52]} 7. Nf3 {[%clk 0:03:01]}  Nbd7 {[%clk 0:02:52]} 8. Bd3 {[%clk 0:03:00]}  Re8 {[%clk 0:02:51]} 9. O-O {[%clk 0:02:59]}  dxc4 {[%clk 0:02:51]} 10. Bxc4 {[%clk 0:03:00]}  e5 {[%clk 0:02:49]} 11. Bxf7+ {[%clk 0:02:54]}  Kxf7 {[%clk 0:02:45]} 12. Qb3+ {[%clk 0:02:53]}  Kf8 {[%clk 0:02:45]} 13. Qxb4+ {[%clk 0:02:52]}  Qe7 {[%clk 0:02:45]} 14. Qb3 {[%clk 0:02:47]}  e4 {[%clk 0:02:43]} 15. Ng5 {[%clk 0:02:40]}  h6 {[%clk 0:02:37]} 16. Nh3 {[%clk 0:02:19]}  Nb6 {[%clk 0:02:23]} 17. Nf4 {[%clk 0:02:08]}  Bf5 {[%clk 0:02:21]} 18. Nce2 {[%clk 0:02:06]}  Nbd5 {[%clk 0:02:19]} 19. Ng3 {[%clk 0:02:06]}  Bh7 {[%clk 0:01:44]} 20. Nxd5 {[%clk 0:02:03]}  Nxd5 {[%clk 0:01:43]} 21. f3 {[%clk 0:02:01]}  exf3 {[%clk 0:01:27]} 22. e4 {[%clk 0:01:50]}  Bxe4 {[%clk 0:01:18]} 23. Rce1 {[%clk 0:01:49]}  Kg8 {[%clk 0:00:54]} 24. Rxe4 {[%clk 0:01:45]}  fxg2 {[%clk 0:00:53]} 25. Rfe1 {[%clk 0:01:32]}  Qf7 {[%clk 0:00:48]} 26. Rxe8+ {[%clk 0:01:32]}  Rxe8 {[%clk 0:00:48]} 27. Rxe8+ {[%clk 0:01:32]}  Qxe8 {[%clk 0:00:48]} 28. Kxg2 {[%clk 0:01:31]}  Qf7 {[%clk 0:00:31]} 29. Qf3 {[%clk 0:01:29]}  Nf6 {[%clk 0:00:28]} 30. b3 {[%clk 0:01:22]}  Qd7 {[%clk 0:00:25]} 31. Nf5 {[%clk 0:01:14]}  Qe6 {[%clk 0:00:21]} 32. Ng3 {[%clk 0:01:00]}  Qd6 {[%clk 0:00:07]} 33. Be3 {[%clk 0:00:56]}  a5 {[%clk 0:00:05]} 34. Qf5 {[%clk 0:00:54]}  b5 {[%clk 0:00:04]} 35. Qe5 {[%clk 0:00:53]}  Qd7 {[%clk 0:00:03]} 36. h3 {[%clk 0:00:53]}  Nd5 {[%clk 0:00:03]} 37. Bf2 {[%clk 0:00:51]}  a4 {[%clk 0:00:03]} 38. Nf5 {[%clk 0:00:51]}  Qb7 {[%clk 0:00:02]} 39. Nd6 {[%clk 0:00:47]}  Qd7 {[%clk 0:00:02]} 40. Qe8+ {[%clk 0:00:46]}  Qxe8 {[%clk 0:00:02]} 41. Nxe8 {[%clk 0:00:47]}  Nb4 {[%clk 0:00:02]} 42. bxa4 {[%clk 0:00:46]}  bxa4 {[%clk 0:00:02]} 43. a3 {[%clk 0:00:36]}  Nc2 {[%clk 0:00:03]} 44. d5 {[%clk 0:00:29]}  cxd5 {[%clk 0:00:03]} 45. Bc5 {[%clk 0:00:29]}  d4 {[%clk 0:00:03]} 46. Kf3 {[%clk 0:00:29]}  d3 {[%clk 0:00:04]} 47. Nd6 {[%clk 0:00:22]}  g5 {[%clk 0:00:04]} 48. Ne4 {[%clk 0:00:21]}  h5 {[%clk 0:00:04]} 49. Nxg5 {[%clk 0:00:21]}  Kg7 {[%clk 0:00:05]} 50. Ne4 {[%clk 0:00:21]}  Kg6 {[%clk 0:00:05]} 51. Nc3 {[%clk 0:00:21]}  Kf5 {[%clk 0:00:05]} 52. Nxa4 {[%clk 0:00:21]}  Ke5 {[%clk 0:00:05]} 53. Nc3 {[%clk 0:00:21]}  h4 {[%clk 0:00:04]} 54. a4 {[%clk 0:00:21]}  Ke6 {[%clk 0:00:05]} 55. a5 {[%clk 0:00:21]}  Kd7 {[%clk 0:00:05]} 56. a6 {[%clk 0:00:21]}  Kc7 {[%clk 0:00:05]} 57. a7 {[%clk 0:00:22]}  Kb7 {[%clk 0:00:05]} 58. Bf2 {[%clk 0:00:22]}  Ka8 {[%clk 0:00:05]} 59. Ke4 {[%clk 0:00:20]}  d2 {[%clk 0:00:05]} 60. Kd3 {[%clk 0:00:20]}  Ne1+ {[%clk 0:00:02]} 61. Kxd2 {[%clk 0:00:20]}  Nf3+ {[%clk 0:00:02]} 62. Kd3 {[%clk 0:00:20]}  Ng5 {[%clk 0:00:03]} 63. Nb5 {[%clk 0:00:19]} 1-0


[Site "https://www.chess.com"]

[Event "Titled Tuesday Blitz June 28 Early 2022"]
[White "Jeet, Jain"]
[Black "Dankhazi, Andras"]
[WhiteFideId "5073022"]
[BlackFideId "714267"]
[WhiteElo "2055"]
[BlackElo "2325"]
[Result "0-1"]
[Round "09"]
[TimeControl "180+1"]
[Date "2022.06.28"]
[WhiteClock "0:00:07"]
[BlackClock "0:00:11"]

1. d4 {[%clk 0:03:00]}  d6 {[%clk 0:02:48]} 2. Nf3 {[%clk 0:03:00]}  Bg4 {[%clk 0:02:48]} 3. e3 {[%clk 0:03:00]}  c6 {[%clk 0:02:46]} 4. h3 {[%clk 0:03:00]}  Bxf3 {[%clk 0:02:46]} 5. Qxf3 {[%clk 0:03:00]}  Nf6 {[%clk 0:02:42]} 6. b3 {[%clk 0:03:00]}  e6 {[%clk 0:02:42]} 7. Bb2 {[%clk 0:03:00]}  d5 {[%clk 0:02:43]} 8. Nd2 {[%clk 0:02:59]}  Bd6 {[%clk 0:02:43]} 9. Bd3 {[%clk 0:02:59]}  Nbd7 {[%clk 0:02:42]} 10. O-O {[%clk 0:02:58]}  Qe7 {[%clk 0:02:43]} 11. e4 {[%clk 0:02:54]}  dxe4 {[%clk 0:02:42]} 12. Nxe4 {[%clk 0:02:55]}  Nxe4 {[%clk 0:02:42]} 13. Qxe4 {[%clk 0:02:53]}  Nf6 {[%clk 0:02:43]} 14. Qf3 {[%clk 0:02:51]}  Ba3 {[%clk 0:02:42]} 15. Bc3 {[%clk 0:02:49]}  Bb4 {[%clk 0:02:41]} 16. Bb2 {[%clk 0:02:49]}  Ba3 {[%clk 0:02:42]} 17. Bc3 {[%clk 0:02:49]}  O-O {[%clk 0:02:34]} 18. Rad1 {[%clk 0:02:46]}  Rfd8 {[%clk 0:02:26]} 19. Ba1 {[%clk 0:02:40]}  Bd6 {[%clk 0:02:24]} 20. Rfe1 {[%clk 0:02:39]}  a5 {[%clk 0:02:20]} 21. a4 {[%clk 0:02:38]}  Bb4 {[%clk 0:02:18]} 22. Re5 {[%clk 0:02:37]}  Bd6 {[%clk 0:02:17]} 23. Re2 {[%clk 0:02:34]}  Qc7 {[%clk 0:02:10]} 24. g4 {[%clk 0:02:29]}  Nd5 {[%clk 0:02:01]} 25. Re4 {[%clk 0:02:12]}  Bb4 {[%clk 0:01:54]} 26. Bf1 {[%clk 0:02:04]}  Nf6 {[%clk 0:01:46]} 27. Re2 {[%clk 0:01:49]}  Bd6 {[%clk 0:01:33]} 28. h4 {[%clk 0:01:45]}  Nd5 {[%clk 0:01:33]} 29. Re4 {[%clk 0:01:41]}  Nf6 {[%clk 0:01:30]} 30. Re2 {[%clk 0:01:37]}  Nd5 {[%clk 0:01:30]} 31. h5 {[%clk 0:01:34]}  h6 {[%clk 0:01:22]} 32. c4 {[%clk 0:01:29]}  Nb4 {[%clk 0:01:11]} 33. Bg2 {[%clk 0:01:24]}  Bf4 {[%clk 0:01:08]} 34. Re4 {[%clk 0:01:21]}  Bg5 {[%clk 0:01:09]} 35. Qe2 {[%clk 0:01:17]}  Rd7 {[%clk 0:01:01]} 36. Rf1 {[%clk 0:01:13]}  Bf4 {[%clk 0:01:01]} 37. Qf3 {[%clk 0:01:12]}  Bg5 {[%clk 0:01:01]} 38. Qe2 {[%clk 0:01:10]}  Rad8 {[%clk 0:00:57]} 39. f4 {[%clk 0:01:09]}  Bf6 {[%clk 0:00:56]} 40. Rd1 {[%clk 0:00:48]}  c5 {[%clk 0:00:56]} 41. d5 {[%clk 0:00:48]}  Bxa1 {[%clk 0:00:55]} 42. Rxa1 {[%clk 0:00:46]}  exd5 {[%clk 0:00:55]} 43. cxd5 {[%clk 0:00:40]}  Nxd5 {[%clk 0:00:56]} 44. Re8+ {[%clk 0:00:40]}  Kh7 {[%clk 0:00:36]} 45. Be4+ {[%clk 0:00:38]}  g6 {[%clk 0:00:37]} 46. hxg6+ {[%clk 0:00:38]}  fxg6 {[%clk 0:00:38]} 47. Bxg6+ {[%clk 0:00:38]}  Kxg6 {[%clk 0:00:33]} 48. Qe6+ {[%clk 0:00:26]}  Nf6 {[%clk 0:00:31]} 49. Qf5+ {[%clk 0:00:15]}  Kg7 {[%clk 0:00:28]} 50. Re6 {[%clk 0:00:15]}  Rf7 {[%clk 0:00:24]} 51. g5 {[%clk 0:00:15]}  Ng8 {[%clk 0:00:12]} 52. Qg6+ {[%clk 0:00:10]}  Kf8 {[%clk 0:00:12]} 53. Rf1 {[%clk 0:00:07]}  hxg5 {[%clk 0:00:11]} 0-1


[Site "https://www.chess.com"]

[Event "Titled Tuesday Blitz June 28 Early 2022"]
[White "Jiganchine, Roman"]
[Black "Zochowski, Kacper"]
[WhiteFideId "2603667"]
[BlackFideId "1125494"]
[WhiteElo "2289"]
[BlackElo "2214"]
[Result "0-1"]
[Round "09"]
[TimeControl "180+1"]
[Date "2022.06.28"]
[WhiteClock "0:01:06"]
[BlackClock "0:01:38"]

1. Nf3 {[%clk 0:03:00]}  Nf6 {[%clk 0:02:58]} 2. c4 {[%clk 0:02:59]}  e6 {[%clk 0:02:58]} 3. Nc3 {[%clk 0:02:57]}  d5 {[%clk 0:02:58]} 4. e3 {[%clk 0:02:57]}  Bb4 {[%clk 0:02:56]} 5. cxd5 {[%clk 0:02:45]}  exd5 {[%clk 0:02:54]} 6. Be2 {[%clk 0:02:43]}  O-O {[%clk 0:02:54]} 7. O-O {[%clk 0:02:42]}  c6 {[%clk 0:02:55]} 8. d4 {[%clk 0:02:41]}  h6 {[%clk 0:02:52]} 9. Ne5 {[%clk 0:02:40]}  Bf5 {[%clk 0:02:52]} 10. Bd2 {[%clk 0:02:37]}  Nbd7 {[%clk 0:02:52]} 11. a3 {[%clk 0:02:24]}  Bd6 {[%clk 0:02:40]} 12. f4 {[%clk 0:02:19]}  Ne4 {[%clk 0:02:40]} 13. Nxe4 {[%clk 0:02:17]}  Bxe4 {[%clk 0:02:39]} 14. Bf3 {[%clk 0:02:16]}  f5 {[%clk 0:02:36]} 15. Bc3 {[%clk 0:02:14]}  Nxe5 {[%clk 0:02:28]} 16. dxe5 {[%clk 0:02:06]}  Bc5 {[%clk 0:02:25]} 17. Bd4 {[%clk 0:02:04]}  Qb6 {[%clk 0:02:22]} 18. Qd2 {[%clk 0:02:01]}  Bxd4 {[%clk 0:02:21]} 19. exd4 {[%clk 0:02:00]}  c5 {[%clk 0:02:22]} 20. dxc5 {[%clk 0:01:51]}  Qxc5+ {[%clk 0:02:22]} 21. Kh1 {[%clk 0:01:47]}  Rac8 {[%clk 0:02:21]} 22. Rac1 {[%clk 0:01:43]}  Qb6 {[%clk 0:02:21]} 23. h3 {[%clk 0:01:33]}  Rfd8 {[%clk 0:02:09]} 24. Kh2 {[%clk 0:01:32]}  Rc6 {[%clk 0:02:08]} 25. Rxc6 {[%clk 0:01:29]}  bxc6 {[%clk 0:02:06]} 26. b4 {[%clk 0:01:28]}  c5 {[%clk 0:01:47]} 27. bxc5 {[%clk 0:01:25]}  Qxc5 {[%clk 0:01:47]} 28. Rc1 {[%clk 0:01:25]}  Qxa3 {[%clk 0:01:46]} 29. Bxe4 {[%clk 0:01:15]}  fxe4 {[%clk 0:01:45]} 30. Qd4 {[%clk 0:01:08]}  Qxc1 {[%clk 0:01:39]} 31. e6 {[%clk 0:01:06]}  Qxf4+ {[%clk 0:01:38]} 0-1


[Site "https://www.chess.com"]

[Event "Titled Tuesday Blitz June 28 Early 2022"]
[White "Jubin Jimmy"]
[Black "Yuan, Qingyu"]
[WhiteFideId "46686614"]
[BlackFideId "8609772"]
[WhiteElo "2219"]
[BlackElo "2359"]
[Result "1-0"]
[Round "09"]
[TimeControl "180+1"]
[Date "2022.06.28"]
[WhiteClock "0:01:58"]
[BlackClock "0:00:53"]

1. d4 {[%clk 0:03:00]}  d5 {[%clk 0:02:59]} 2. c4 {[%clk 0:02:59]}  e6 {[%clk 0:03:00]} 3. Nc3 {[%clk 0:02:59]}  Nf6 {[%clk 0:03:00]} 4. cxd5 {[%clk 0:03:00]}  exd5 {[%clk 0:03:01]} 5. Bg5 {[%clk 0:03:00]}  c6 {[%clk 0:03:01]} 6. Qc2 {[%clk 0:03:00]}  h6 {[%clk 0:02:48]} 7. Bh4 {[%clk 0:03:00]}  Be7 {[%clk 0:02:48]} 8. e3 {[%clk 0:02:59]}  O-O {[%clk 0:02:48]} 9. Bd3 {[%clk 0:02:59]}  Re8 {[%clk 0:02:48]} 10. Nge2 {[%clk 0:02:59]}  Nbd7 {[%clk 0:02:47]} 11. O-O {[%clk 0:02:58]}  a5 {[%clk 0:02:48]} 12. h3 {[%clk 0:02:57]}  b5 {[%clk 0:02:37]} 13. Rae1 {[%clk 0:02:52]}  Ba6 {[%clk 0:02:35]} 14. f3 {[%clk 0:02:50]}  Qb6 {[%clk 0:02:28]} 15. Kh1 {[%clk 0:02:46]}  Rac8 {[%clk 0:02:16]} 16. Bf5 {[%clk 0:02:44]}  Rcd8 {[%clk 0:02:02]} 17. e4 {[%clk 0:02:43]}  dxe4 {[%clk 0:01:30]} 18. fxe4 {[%clk 0:02:41]}  g6 {[%clk 0:01:12]} 19. Bxg6 {[%clk 0:02:22]}  fxg6 {[%clk 0:01:09]} 20. e5 {[%clk 0:02:22]}  Kg7 {[%clk 0:01:03]} 21. Nf4 {[%clk 0:02:19]}  Nf8 {[%clk 0:00:54]} 22. exf6+ {[%clk 0:02:18]}  Bxf6 {[%clk 0:00:53]} 23. Bxf6+ {[%clk 0:02:18]}  Kxf6 {[%clk 0:00:51]} 24. Nfd5+ {[%clk 0:02:12]}  Kg7 {[%clk 0:00:52]} 25. Nxb6 {[%clk 0:02:12]}  b4 {[%clk 0:00:52]} 26. Ne4 {[%clk 0:02:08]}  Bxf1 {[%clk 0:00:52]} 27. Rxf1 {[%clk 0:02:09]}  Rxd4 {[%clk 0:00:52]} 28. Nf6 {[%clk 0:02:05]}  Re6 {[%clk 0:00:53]} 29. Qf2 {[%clk 0:02:01]}  Rdd6 {[%clk 0:00:53]} 30. Nh5+ {[%clk 0:01:59]}  gxh5 {[%clk 0:00:53]} 31. Qxf8+ {[%clk 0:02:00]}  Kh7 {[%clk 0:00:53]} 32. Qf7+ {[%clk 0:01:59]}  Kh8 {[%clk 0:00:53]} 33. Nc8 {[%clk 0:02:00]}  Rd7 {[%clk 0:00:53]} 34. Qxe6 {[%clk 0:01:59]}  Rh7 {[%clk 0:00:53]} 35. Rf8+ {[%clk 0:01:58]} 1-0


[Site "https://www.chess.com"]

[Event "Titled Tuesday Blitz June 28 Early 2022"]
[White "Kanyamarala, Tarun"]
[Black "Silvestre, Christian"]
[WhiteFideId "45004714"]
[BlackFideId "30956269"]
[WhiteElo "2219"]
[BlackElo "2343"]
[Result "0-1"]
[Round "09"]
[TimeControl "180+1"]
[Date "2022.06.28"]
[WhiteClock "0:01:42"]
[BlackClock "0:00:10"]

1. e3 {[%clk 0:03:00]}  e5 {[%clk 0:02:51]} 2. Nf3 {[%clk 0:03:00]}  Nc6 {[%clk 0:02:44]} 3. e4 {[%clk 0:02:58]}  Bc5 {[%clk 0:02:38]} 4. c3 {[%clk 0:02:57]}  d6 {[%clk 0:02:33]} 5. d4 {[%clk 0:02:57]}  Bb6 {[%clk 0:02:30]} 6. Bb5 {[%clk 0:02:55]}  Bd7 {[%clk 0:02:21]} 7. d5 {[%clk 0:02:48]}  Nce7 {[%clk 0:02:18]} 8. Bxd7+ {[%clk 0:02:49]}  Qxd7 {[%clk 0:02:18]} 9. Qe2 {[%clk 0:02:49]}  Nf6 {[%clk 0:02:08]} 10. Bg5 {[%clk 0:02:49]}  Nfg8 {[%clk 0:01:54]} 11. Na3 {[%clk 0:02:48]}  h6 {[%clk 0:01:53]} 12. Be3 {[%clk 0:02:48]}  f5 {[%clk 0:01:51]} 13. Bxb6 {[%clk 0:02:43]}  axb6 {[%clk 0:01:50]} 14. Nb5 {[%clk 0:02:43]}  fxe4 {[%clk 0:01:43]} 15. Nd2 {[%clk 0:02:44]}  Nf6 {[%clk 0:01:42]} 16. c4 {[%clk 0:02:44]}  c6 {[%clk 0:01:29]} 17. Nc3 {[%clk 0:02:40]}  cxd5 {[%clk 0:01:27]} 18. cxd5 {[%clk 0:02:41]}  O-O {[%clk 0:01:17]} 19. Ndxe4 {[%clk 0:02:40]}  Nxe4 {[%clk 0:01:13]} 20. Qxe4 {[%clk 0:02:40]}  Nf5 {[%clk 0:01:02]} 21. O-O {[%clk 0:02:38]}  Nd4 {[%clk 0:01:00]} 22. f4 {[%clk 0:02:36]}  Qf5 {[%clk 0:00:48]} 23. Qxf5 {[%clk 0:02:36]}  Rxf5 {[%clk 0:00:46]} 24. fxe5 {[%clk 0:02:37]}  Rxe5 {[%clk 0:00:41]} 25. Rae1 {[%clk 0:02:34]}  Rae8 {[%clk 0:00:38]} 26. Rxe5 {[%clk 0:02:34]}  Rxe5 {[%clk 0:00:38]} 27. Kf2 {[%clk 0:02:35]}  Rf5+ {[%clk 0:00:34]} 28. Kg1 {[%clk 0:02:35]}  Re5 {[%clk 0:00:33]} 29. h3 {[%clk 0:02:27]}  Ne2+ {[%clk 0:00:32]} 30. Nxe2 {[%clk 0:02:27]}  Rxe2 {[%clk 0:00:32]} 31. Rf2 {[%clk 0:02:28]}  Re1+ {[%clk 0:00:32]} 32. Kh2 {[%clk 0:02:25]}  Rd1 {[%clk 0:00:31]} 33. Rc2 {[%clk 0:02:26]}  Rxd5 {[%clk 0:00:30]} 34. Rc7 {[%clk 0:02:27]}  Rd2 {[%clk 0:00:28]} 35. b4 {[%clk 0:02:26]}  Rxa2 {[%clk 0:00:25]} 36. Rxb7 {[%clk 0:02:27]}  Rb2 {[%clk 0:00:24]} 37. Rxb6 {[%clk 0:02:27]}  d5 {[%clk 0:00:24]} 38. Kg3 {[%clk 0:02:27]}  d4 {[%clk 0:00:24]} 39. Kf3 {[%clk 0:02:28]}  d3 {[%clk 0:00:24]} 40. Ke3 {[%clk 0:02:29]}  d2 {[%clk 0:00:22]} 41. Ke2 {[%clk 0:02:29]}  Kf7 {[%clk 0:00:19]} 42. Kd1 {[%clk 0:02:30]}  Ke7 {[%clk 0:00:17]} 43. g4 {[%clk 0:02:28]}  Kf7 {[%clk 0:00:17]} 44. h4 {[%clk 0:02:28]}  Ke7 {[%clk 0:00:17]} 45. h5 {[%clk 0:02:27]}  Kf7 {[%clk 0:00:14]} 46. b5 {[%clk 0:02:25]}  Ke7 {[%clk 0:00:14]} 47. Rb8 {[%clk 0:02:25]}  Kf7 {[%clk 0:00:14]} 48. b6 {[%clk 0:02:24]}  Kf6 {[%clk 0:00:14]} 49. Ke2 {[%clk 0:02:15]}  Kg5 {[%clk 0:00:14]} 50. Rg8 {[%clk 0:02:10]}  Kxg4 {[%clk 0:00:11]} 51. Rxg7+ {[%clk 0:02:10]}  Kxh5 {[%clk 0:00:12]} 52. b7 {[%clk 0:02:11]}  Kh4 {[%clk 0:00:11]} 53. Rc7 {[%clk 0:02:00]}  h5 {[%clk 0:00:11]} 54. Rc4+ {[%clk 0:01:52]}  Kh3 {[%clk 0:00:11]} 55. Rc3+ {[%clk 0:01:51]}  Kh4 {[%clk 0:00:08]} 56. Rc2 {[%clk 0:01:51]}  Rxb7 {[%clk 0:00:07]} 57. Rxd2 {[%clk 0:01:51]}  Rf7 {[%clk 0:00:07]} 58. Rd8 {[%clk 0:01:49]}  Kh3 {[%clk 0:00:07]} 59. Rg8 {[%clk 0:01:49]}  h4 {[%clk 0:00:07]} 60. Ke1 {[%clk 0:01:49]}  Kh2 {[%clk 0:00:07]} 61. Ke2 {[%clk 0:01:50]}  h3 {[%clk 0:00:07]} 62. Ke1 {[%clk 0:01:50]}  Rf5 {[%clk 0:00:06]} 63. Ke2 {[%clk 0:01:51]}  Rf6 {[%clk 0:00:06]} 64. Ke1 {[%clk 0:01:51]}  Rb6 {[%clk 0:00:05]} 65. Ke2 {[%clk 0:01:51]}  Rb2+ {[%clk 0:00:05]} 66. Kf1 {[%clk 0:01:51]}  Rg2 {[%clk 0:00:06]} 67. Rh8 {[%clk 0:01:51]}  Kg3 {[%clk 0:00:05]} 68. Rg8+ {[%clk 0:01:51]}  Kh2 {[%clk 0:00:06]} 69. Rf8 {[%clk 0:01:51]}  Rg1+ {[%clk 0:00:06]} 70. Kf2 {[%clk 0:01:51]}  Rg2+ {[%clk 0:00:07]} 71. Kf1 {[%clk 0:01:51]}  Kh1 {[%clk 0:00:07]} 72. Rh8 {[%clk 0:01:50]}  h2 {[%clk 0:00:07]} 73. Rh7 {[%clk 0:01:50]}  Rg1+ {[%clk 0:00:08]} 74. Kf2 {[%clk 0:01:50]}  Rg2+ {[%clk 0:00:09]} 75. Kf1 {[%clk 0:01:50]}  Rg1+ {[%clk 0:00:10]} 76. Kf2 {[%clk 0:01:51]}  Rg5 {[%clk 0:00:10]} 77. Kf1 {[%clk 0:01:50]}  Rf5+ {[%clk 0:00:10]} 78. Ke2 {[%clk 0:01:48]}  Kg2 {[%clk 0:00:10]} 79. Rg7+ {[%clk 0:01:48]}  Kh3 {[%clk 0:00:10]} 80. Rh7+ {[%clk 0:01:48]}  Kg3 {[%clk 0:00:10]} 81. Ke1 {[%clk 0:01:42]}  Rf4 {[%clk 0:00:10]} 0-1


[Site "https://www.chess.com"]

[Event "Titled Tuesday Blitz June 28 Early 2022"]
[White "Kapitsyn, Mark"]
[Black "Gueci, Tea"]
[WhiteFideId "4116240"]
[BlackFideId "872342"]
[WhiteElo "2310"]
[BlackElo "2142"]
[Result "0-1"]
[Round "09"]
[TimeControl "180+1"]
[Date "2022.06.28"]
[WhiteClock "0:00:02"]
[BlackClock "0:01:13"]

1. e4 {[%clk 0:03:00]}  e5 {[%clk 0:03:00]} 2. Nf3 {[%clk 0:03:00]}  Nc6 {[%clk 0:03:00]} 3. Bc4 {[%clk 0:03:01]}  Nf6 {[%clk 0:02:59]} 4. d3 {[%clk 0:03:01]}  h6 {[%clk 0:02:58]} 5. c3 {[%clk 0:02:57]}  d6 {[%clk 0:02:54]} 6. Nbd2 {[%clk 0:02:51]}  g5 {[%clk 0:02:51]} 7. O-O {[%clk 0:02:41]}  Bg7 {[%clk 0:02:49]} 8. Bb3 {[%clk 0:02:25]}  O-O {[%clk 0:02:47]} 9. Re1 {[%clk 0:02:23]}  g4 {[%clk 0:02:43]} 10. Nh4 {[%clk 0:02:14]}  Nxe4 {[%clk 0:02:40]} 11. dxe4 {[%clk 0:01:52]}  Qxh4 {[%clk 0:02:40]} 12. Nf1 {[%clk 0:01:52]}  h5 {[%clk 0:02:32]} 13. Qd3 {[%clk 0:01:34]}  Qe7 {[%clk 0:02:23]} 14. Be3 {[%clk 0:01:32]}  a5 {[%clk 0:02:13]} 15. Rad1 {[%clk 0:01:30]}  a4 {[%clk 0:02:13]} 16. Bc2 {[%clk 0:01:14]}  h4 {[%clk 0:02:08]} 17. Qd2 {[%clk 0:01:06]}  h3 {[%clk 0:02:00]} 18. Ng3 {[%clk 0:01:01]}  Qh4 {[%clk 0:01:54]} 19. Bg5 {[%clk 0:00:58]}  Qh7 {[%clk 0:01:54]} 20. Nf5 {[%clk 0:00:38]}  Bxf5 {[%clk 0:01:50]} 21. exf5 {[%clk 0:00:39]}  f6 {[%clk 0:01:51]} 22. Be3 {[%clk 0:00:36]}  hxg2 {[%clk 0:01:50]} 23. Qd5+ {[%clk 0:00:33]}  Kh8 {[%clk 0:01:49]} 24. Qxg2 {[%clk 0:00:32]}  Bh6 {[%clk 0:01:46]} 25. Rd3 {[%clk 0:00:23]}  Bf4 {[%clk 0:01:37]} 26. Rdd1 {[%clk 0:00:13]}  Rg8 {[%clk 0:01:36]} 27. a3 {[%clk 0:00:12]}  Rg5 {[%clk 0:01:34]} 28. Bd3 {[%clk 0:00:03]}  Rh5 {[%clk 0:01:31]} 29. Kf1 {[%clk 0:00:04]}  Rxh2 {[%clk 0:01:31]} 30. Qd5 {[%clk 0:00:04]}  Qh3+ {[%clk 0:01:28]} 31. Ke2 {[%clk 0:00:04]}  Bxe3 {[%clk 0:01:24]} 32. Be4 {[%clk 0:00:02]}  Rxf2+ {[%clk 0:01:21]} 33. Kd3 {[%clk 0:00:03]}  Bg5+ {[%clk 0:01:18]} 34. Kc4 {[%clk 0:00:03]}  Na5+ {[%clk 0:01:17]} 35. Kb4 {[%clk 0:00:03]}  Rxb2+ {[%clk 0:01:16]} 36. Kxa4 {[%clk 0:00:02]}  Nc6+ {[%clk 0:01:13]} 37. Qa5 {[%clk 0:00:02]}  Rxa5# {[%clk 0:01:13]} 0-1


[Site "https://www.chess.com"]

[Event "Titled Tuesday Blitz June 28 Early 2022"]
[White "Kuzmin, Roman"]
[Black "Blokhin, Sofia"]
[WhiteFideId "44134932"]
[BlackFideId "4508190"]
[WhiteElo "1968"]
[BlackElo "1760"]
[Result "1-0"]
[Round "09"]
[TimeControl "180+1"]
[Date "2022.06.28"]
[WhiteClock "0:00:49"]
[BlackClock "0:00:59"]

1. e4 {[%clk 0:02:23]}  c5 {[%clk 0:02:58]} 2. Nf3 {[%clk 0:02:22]}  e6 {[%clk 0:02:59]} 3. d4 {[%clk 0:02:23]}  cxd4 {[%clk 0:02:59]} 4. Nxd4 {[%clk 0:02:24]}  a6 {[%clk 0:02:59]} 5. Bd3 {[%clk 0:02:24]}  Qc7 {[%clk 0:02:59]} 6. O-O {[%clk 0:02:22]}  Nf6 {[%clk 0:03:00]} 7. Qe2 {[%clk 0:02:22]}  Nc6 {[%clk 0:03:00]} 8. Nxc6 {[%clk 0:02:21]}  dxc6 {[%clk 0:03:01]} 9. b3 {[%clk 0:02:19]}  e5 {[%clk 0:03:01]} 10. Bb2 {[%clk 0:02:20]}  Bc5 {[%clk 0:02:59]} 11. Nd2 {[%clk 0:02:16]}  Bg4 {[%clk 0:02:55]} 12. Qe1 {[%clk 0:02:15]}  O-O {[%clk 0:02:52]} 13. Kh1 {[%clk 0:02:14]}  b5 {[%clk 0:02:43]} 14. f4 {[%clk 0:02:13]}  exf4 {[%clk 0:02:20]} 15. Qh4 {[%clk 0:01:59]}  Be7 {[%clk 0:02:05]} 16. e5 {[%clk 0:01:38]}  Ne4 {[%clk 0:02:02]} 17. Qxg4 {[%clk 0:01:38]}  Nxd2 {[%clk 0:02:01]} 18. Rxf4 {[%clk 0:01:38]}  g6 {[%clk 0:01:37]} 19. Rf2 {[%clk 0:01:32]}  Qa5 {[%clk 0:01:26]} 20. a3 {[%clk 0:00:58]}  Bc5 {[%clk 0:01:20]} 21. b4 {[%clk 0:00:56]}  Qa4 {[%clk 0:01:15]} 22. Rxd2 {[%clk 0:00:53]}  Be3 {[%clk 0:01:12]} 23. Re2 {[%clk 0:00:52]}  Bh6 {[%clk 0:01:07]} 24. e6 {[%clk 0:00:52]}  fxe6 {[%clk 0:01:04]} 25. Qxe6+ {[%clk 0:00:51]}  Rf7 {[%clk 0:01:05]} 26. Rf1 {[%clk 0:00:51]}  Rf8 {[%clk 0:01:00]} 27. Rxf7 {[%clk 0:00:49]}  Rxf7 {[%clk 0:00:59]} 28. Rf2 {[%clk 0:00:49]} 1-0


[Site "https://www.chess.com"]